bitfinex/quotes_SOLUSD_20260113
["timestamp","ask_amount","ask_price","bid_price","bid_amount"]
[1768288769399,2.08690282,140.25,140.21,2.08690282]
[1768288769595,21.43,140.31,140.21,2.08690282]
[1768288769596,0.1,140.33,140.27,0.66393534]
[1768288769804,0.1,140.33,140.23,13.02]
[1768288769805,0.66330733,140.28,140.23,13.02]
[1768288769999,0.66330733,140.28,140.23,15.10690282]
[1768288770213,2.08690282,140.28,140.23,15.10690282]
[1768288770618,2.08690282,140.28,140.23,2.08690282]
[1768288770815,2.08690282,140.28,140.23,15.10690282]
[1768288771522,9.21597067,140.28,140.23,2.08690282]
[1768288772626,9.21597067,140.28,140.21,13.81212204]
[1768288772627,7.12906785,140.28,140.25,2.08690282]
[1768288773314,7.79237518,140.28,140.25,2.08690282]
[1768288774422,7.79237518,140.28,140.26,2.08690282]
[1768288780924,0.69289621,140.27,140.2,2.08690282]
[1768288781109,0.69289621,140.27,140.23,2.08690282]
[1768288781624,2.08690282,140.26,140.22,2.08690282]
[1768288783622,2.77979903,140.25,140.21,2.08690282]
[1768288785231,0.69289621,140.25,140.21,2.08690282]
[1768288785431,2.77979903,140.25,140.2,2.08690282]
[1768288786937,9.91012031,140.25,140.2,2.08690282]
[1768288787324,0.69289621,140.24,140.2,2.08690282]
[1768288787521,2.77979903,140.24,140.2,2.08690282]
[1768288787730,2.77979903,140.24,140.19,9.21960326]
[1768288788031,0.69289621,140.24,140.19,9.21960326]
[1768288788232,2.77979903,140.24,140.19,9.21960326]
[1768288788539,9.91012031,140.25,140.2,2.08690282]
[1768288788834,2.77979903,140.24,140.19,9.21960326]
[1768288789037,0.69289621,140.21,140.16,6.6801107]
[1768288789236,0.69289621,140.2,140.16,2.08690282]
[1768288789414,0.69289621,140.2,140.17,2.08690282]
[1768288789835,0.69289621,140.21,140.17,2.08690282]
[1768288790038,2.77979903,140.22,140.17,9.22109132]
[1768288792219,2.77979903,140.22,140.17,2.08690282]
[1768288794245,2.77979903,140.22,140.16,7.13470319]
[1768288794246,2.08690282,140.21,140.16,9.22160601]
[1768288794557,2.77979903,140.21,140.16,9.22160601]
[1768288796234,0.69289621,140.3,140.19,6.6801107]
[1768288796554,0.69289621,140.27,140.22,2.08690282]
[1768288796853,0.69289621,140.27,140.23,2.08690282]
[1768288797336,7.82232418,140.27,140.23,2.08690282]
[1768288798322,0.69289621,140.26,140.23,2.08690282]
[1768288798524,0.69289621,140.26,140.24,2.08690282]
[1768288799542,0.69289621,140.26,140.21,7.13211867]
[1768288799749,0.69289621,140.26,140.22,2.08690282]
[1768288799950,0.69289621,140.26,140.23,2.08690282]
[1768288800452,0.69289621,140.26,140.21,7.13211867]
[1768288800946,0.69289621,140.26,140.23,2.08690282]
[1768288801535,0.69289621,140.26,140.24,2.08690282]
[1768288801941,0.69289621,140.25,140.21,7.13211867]
[1768288802140,0.69289621,140.24,140.2,2.08690282]
[1768288802450,0.69289621,140.24,140.18,7.13358817]
[1768288802451,0.69289621,140.23,140.19,2.08690282]
[1768288803150,0.69289621,140.23,140.19,9.22001149]
[1768288806458,0.67102901,140.21,140.16,20.15435549]
[1768288806757,0.67102901,140.2,140.16,2.08690282]
[1768288807254,0.67102901,140.2,140.15,7.13486458]
[1768288807452,2.75793183,140.2,140.15,9.2217674]
[1768288807647,0.67102901,140.31,140.19,4.17380564]
[1768288807849,0.67102901,140.29,140.25,2.08690282]
[1768288808052,0.67102901,140.29,140.2,21.78701352]
[1768288808250,0.67102901,140.29,140.21,24.96255616]
[1768288808642,0.67102901,140.28,140.21,24.96255616]
[1768288808844,0.67102901,140.28,140.24,2.08690282]
[1768288809160,0.67102901,140.28,140.26,2.08690282]
[1768288809343,0.67102901,140.28,140.26,2.03756706]
[1768288809958,0.67102901,140.28,140.24,2.08690282]
[1768288810258,0.67102901,140.28,140.26,2.08690282]
[1768288811460,0.67102901,140.28,140.26,3.2550449]
[1768288811959,7.1275294,140.31,140.27,3.2550449]
[1768288812142,13.02,140.29,140.27,3.2550449]
[1768288812349,13.02,140.29,140.26,3.2550449]
[1768288812546,13.02,140.29,140.27,3.2550449]
[1768288813251,13.02,140.29,140.26,3.2550449]
[1768288813445,20.14810674,140.29,140.26,3.2550449]
[1768288813645,13.02,140.29,140.26,3.2550449]
[1768288814053,0.72305766,140.28,140.26,3.2550449]
[1768288814357,0.72305766,140.28,140.24,10.38552363]
[1768288814544,0.72305766,140.28,140.26,3.2550449]
[1768288815347,0.72305766,140.28,140.27,3.2550449]
[1768288818855,0.72305766,140.28,140.26,3.2550449]
[1768288821457,0.72305766,140.28,140.24,3.92607182]
[1768288822954,0.72305766,140.28,140.24,0.67102692]
[1768288823170,0.72305766,140.28,140.24,3.92607182]
[1768288824175,13.74305766,140.29,140.26,3.92607182]
[1768288824362,13.02,140.29,140.27,3.2550449]
[1768288824555,0.72305766,140.3,140.26,3.92607182]
[1768288824872,13.74305766,140.3,140.26,3.92607182]
[1768288825266,0.72305766,140.29,140.26,3.92607182]
[1768288825459,0.72305766,140.29,140.24,28.21213189]
[1768288825460,0.72305766,140.29,140.25,3.92607182]
[1768288825672,0.72305766,140.29,140.26,0.67102692]
[1768288826480,0.72305766,140.29,140.25,11.05611168]
[1768288827874,0.72305766,140.29,140.26,0.67102692]
[1768288831557,20.87068364,140.3,140.26,0.67102692]
[1768288831980,20.87068364,140.3,140.26,3.92607182]
[1768288833883,20.87068364,140.3,140.26,0.67102692]
[1768288834056,0.72305766,140.31,140.27,0.67102692]
[1768288834261,13.74305766,140.31,140.28,0.67102692]
[1768288834476,0.72305766,140.3,140.26,11.05564285]
[1768288834780,0.72305766,140.3,140.27,0.67102692]
[1768288834967,0.72305766,140.3,140.27,3.92607182]
[1768288835170,13.67447901,140.31,140.27,0.67102692]
[1768288836587,20.80182409,140.31,140.27,0.67102692]
[1768288836887,0.65447901,140.3,140.27,0.67102692]
[1768288837275,0.65447901,140.3,140.26,0.67102692]
[1768288837471,0.65447901,140.3,140.26,3.92607182]
[1768288838385,3.90952391,140.3,140.26,0.67102692]
[1768288838596,11.03750814,140.3,140.26,0.67102692]
[1768288838886,7.78246324,140.3,140.26,3.92607182]
[1768288839187,7.78246324,140.3,140.26,3.86607182]
[1768288839685,0.65447901,140.29,140.21,17.83000697]
[1768288839887,0.65447901,140.29,140.25,3.2550449]
[1768288841367,0.65447901,140.29,140.25,3.86607182]
[1768288841865,0.65447901,140.29,140.25,3.2550449]
[1768288842065,7.78263646,140.29,140.25,3.2550449]
[1768288842280,0.65447901,140.28,140.25,3.2550449]
[1768288842680,0.65447901,140.28,140.24,0.61102692]
[1768288842886,0.65447901,140.28,140.24,3.2550449]
[1768288843189,0.65447901,140.27,140.24,3.2550449]
[1768288844171,0.65447901,140.27,140.25,3.2550449]
[1768288846371,0.65447901,140.27,140.24,3.2550449]
[1768288846892,0.65447901,140.27,140.25,3.2550449]
[1768288848183,0.65447901,140.27,140.24,3.2550449]
[1768288848688,0.65447901,140.26,140.24,3.2550449]
[1768288848867,0.65447901,140.26,140.23,3.2550449]
[1768288849075,0.65447901,140.26,140.22,3.2550449]
[1768288849477,0.65447901,140.25,140.21,0.61102692]
[1768288849676,0.65447901,140.25,140.21,3.86607182]
[1768288850075,0.65447901,140.25,140.21,10.99813171]
[1768288850290,0.65447901,140.25,140.21,10.38710479]
[1768288850493,0.099,140.23,140.19,3.95925001]
[1768288850692,3.2550449,140.24,140.2,0.70420511]
[1768288850878,3.3540449,140.24,140.2,0.70420511]
[1768288851197,0.099,140.24,140.2,3.95925001]
[1768288851899,3.3540449,140.24,140.2,0.70420511]
[1768288852482,0.099,140.24,140.2,0.70420511]
[1768288853088,0.099,140.24,140.2,3.95925001]
[1768288854485,0.099,140.24,140.2,0.70420511]
[1768288854686,0.099,140.24,140.2,3.95925001]
[1768288855796,0.099,140.24,140.21,0.70420511]
[1768288856188,0.54992421,140.23,140.19,0.70420511]
[1768288857489,0.54992421,140.23,140.19,3.95925001]
[1768288857690,0.54992421,140.23,140.19,11.0923419]
[1768288857907,0.54992421,140.23,140.19,7.837297]
[1768288858103,0.54992421,140.23,140.19,11.0923419]
[1768288861000,0.10792876,140.2,140.16,0.70420511]
[1768288861209,3.79612964,140.19,140.14,0.70420511]
[1768288861402,3.79612964,140.19,140.15,0.70420511]
[1768288861902,0.54108474,140.19,140.15,0.70420511]
[1768288862302,0.54108474,140.19,140.15,3.95925001]
[1768288862505,23.50693206,140.2,140.16,0.70420511]
[1768288862685,3.2550449,140.19,140.16,0.70420511]
[1768288863608,10.38840941,140.19,140.16,0.70420511]
[1768288863911,10.35840942,140.19,140.16,0.70420511]
[1768288864893,10.90833363,140.19,140.16,0.70420511]
[1768288865813,10.90833363,140.19,140.15,0.67695953]
[1768288866317,3.2550449,140.18,140.15,0.67695953]
[1768288866812,0.54546006,140.17,140.13,7.13609788]
[1768288866986,0.54546006,140.17,140.13,10.39114278]
[1768288867493,0.54546006,140.17,140.14,7.13554294]
[1768288869010,0.54546006,140.17,140.13,7.13623064]
[1768288870491,0.54546006,140.17,140.14,0.67695953]
[1768288870707,3.2550449,140.19,140.14,0.67695953]
[1768288871308,0.6,140.18,140.15,0.67695953]
[1768288872727,0.10350925,140.17,140.14,10.39040487]
[1768288872906,0.07350926,140.17,140.14,7.13535997]
[1768288873228,0.07350926,140.17,140.13,11.06809104]
[1768288873520,0.07350926,140.17,140.13,9.89991389]
[1768288874822,0.07350926,140.17,140.13,7.81304614]
[1768288875202,0.07350926,140.17,140.13,9.89991389]
[1768288876828,0.07350926,140.17,140.13,7.81304614]
[1768288877014,0.07350926,140.17,140.13,9.89991389]
[1768288877527,0.07350926,140.17,140.13,7.81304614]
[1768288877825,15.10686775,140.19,140.14,0.68748087]
[1768288878338,13.02,140.19,140.14,0.68748087]
[1768288878504,0.52447902,140.2,140.15,0.68748087]
[1768288878829,15.10686775,140.2,140.15,0.68748087]
[1768288879907,7.13233455,140.21,140.16,0.68748087]
[1768288880106,22.2392023,140.21,140.17,0.68748087]
[1768288880404,2.08686775,140.2,140.17,0.68748087]
[1768288881520,0.69690395,140.28,140.19,4.1737355]
[1768288881722,0.69690395,140.3,140.21,6.6801107]
[1768288881908,0.69690395,140.3,140.27,2.08686775]
[1768288882307,0.69690395,140.3,140.28,2.08686775]
[1768288882531,0.69690395,140.3,140.28,1.36186775]
[1768288883131,0.69690395,140.3,140.28,2.08686775]
[1768288884518,7.72388354,140.32,140.28,2.77434862]
[1768288885032,0.099,140.31,140.28,2.08686775]
[1768288885939,7.12697959,140.32,140.28,2.77434862]
[1768288886132,9.21384734,140.32,140.28,2.77434862]
[1768288886930,9.21384734,140.32,140.28,0.68748087]
[1768288887524,2.67879266,140.31,140.26,2.77434862]
[1768288887724,2.67879266,140.31,140.26,0.68748087]
[1768288888026,0.58704496,140.29,140.24,0.68748087]
[1768288888225,2.08686775,140.29,140.25,2.77434862]
[1768288888534,0.59192491,140.28,140.25,1.98188871]
[1768288888830,0.59192491,140.28,140.24,2.08686775]
[1768288891211,0.59192491,140.28,140.23,7.13100903]
[1768288891526,0.59192491,140.28,140.24,2.08686775]
[1768288891929,0.49192491,140.27,140.23,9.21787678]
[1768288893415,2.08686775,140.28,140.24,0.68748087]
[1768288895629,7.61623294,140.29,140.24,0.68748087]
[1768288895815,2.08686775,140.28,140.24,0.68748087]
[1768288896028,7.61623294,140.29,140.24,0.68748087]
[1768288896224,2.08686775,140.28,140.24,0.68748087]
[1768288896546,7.61623294,140.29,140.24,0.68748087]
[1768288896747,2.08686775,140.28,140.24,0.68748087]
[1768288897626,9.70310069,140.29,140.24,0.68748087]
[1768288898148,9.21510503,140.29,140.24,0.68748087]
[1768288903259,7.12823728,140.29,140.25,0.71613754]
[1768288903449,9.21510503,140.29,140.25,0.71613754]
[1768288905342,0.49192491,140.3,140.26,0.71613754]
[1768288905343,2.57486341,140.3,140.26,0.71613754]
[1768288906056,41.57721507,140.31,140.26,0.71613754]
[1768288906057,20.14721507,140.31,140.26,0.71613754]
[1768288906260,13.119,140.31,140.27,0.71613754]
[1768288906562,2.08686775,140.3,140.27,0.71613754]
[1768288906748,2.08686775,140.29,140.25,0.71613754]
[1768288907153,2.08686775,140.28,140.25,0.71613754]
[1768288907345,0.10288995,140.29,140.25,0.71613754]
[1768288907670,2.08686775,140.28,140.25,0.71613754]
[1768288908247,2.08686775,140.27,140.25,0.71613754]
[1768288910452,2.08686775,140.26,140.23,0.71613754]
[1768288911948,2.08686775,140.25,140.23,0.71613754]
[1768288914176,2.08686775,140.24,140.21,0.71613754]
[1768288914579,2.08686775,140.23,140.21,0.71613754]
[1768288914967,2.08686775,140.24,140.21,0.71613754]
[1768288920070,9.21755148,140.24,140.21,0.71613754]
[1768288920268,2.08686775,140.24,140.21,0.71613754]
[1768288920470,2.08686775,140.25,140.21,0.71613754]
[1768288921184,2.08686775,140.25,140.22,0.71613754]
[1768288927383,2.08686775,140.24,140.21,0.71018618]
[1768288929392,2.1897577,140.24,140.21,0.71018618]
[1768288929782,2.08686775,140.24,140.21,0.71018618]
[1768288930381,7.62169191,140.26,140.22,0.71018618]
[1768288930581,15.10686775,140.25,140.22,0.71018618]
[1768288931394,13.02,140.25,140.22,0.71018618]
[1768288931794,15.10686775,140.25,140.22,0.71018618]
[1768288935192,13.02,140.25,140.22,0.71018618]
[1768288935393,16.27741943,140.25,140.22,0.71018618]
[1768288940076,13.02,140.25,140.22,0.71018618]
[1768288940374,16.27741943,140.25,140.22,0.71018618]
[1768288941200,13.02,140.25,140.22,0.71018618]
[1768288942797,16.27741943,140.25,140.22,0.71018618]
[1768288946293,23.50666903,140.25,140.22,0.71018618]
[1768288946499,20.2492496,140.25,140.21,0.70611749]
[1768288946700,3.25741943,140.24,140.21,0.70611749]
[1768288947290,23.50666903,140.25,140.21,0.70611749]
[1768288947601,3.25741943,140.24,140.21,0.70611749]
[1768288948907,3.74541509,140.24,140.21,0.70611749]
[1768288949095,3.25741943,140.24,140.21,0.70611749]
[1768288952987,3.74541509,140.24,140.21,0.70611749]
[1768288953399,3.25741943,140.24,140.21,0.70611749]
[1768288954095,3.25741943,140.24,140.2,0.70611749]
[1768288954096,3.25741943,140.23,140.2,0.70611749]
[1768288955509,10.48727734,140.24,140.2,0.70611749]
[1768288956597,3.25741943,140.23,140.2,0.70611749]
[1768288958621,10.87662987,140.23,140.2,0.70611749]
[1768288958802,10.38863421,140.23,140.2,0.70611749]
[1768288961006,3.25741943,140.23,140.2,0.70611749]
[1768288962519,10.87958201,140.25,140.21,0.71392953]
[1768288962699,13.02,140.24,140.21,0.71392953]
[1768288963219,16.27741943,140.25,140.21,0.71392953]
[1768288963617,23.50654577,140.25,140.21,0.71392953]
[1768288963803,3.74541509,140.24,140.21,0.71392953]
[1768288965012,3.25741943,140.24,140.21,0.71392953]
[1768288965211,20.24912634,140.25,140.21,0.71392953]
[1768288965418,3.25741943,140.24,140.21,0.71392953]
[1768288966424,23.50654577,140.25,140.21,0.71392953]
[1768288967122,20.24912634,140.25,140.21,0.71392953]
[1768288967325,23.50654577,140.25,140.21,0.71392953]
[1768288969541,7.12924485,140.27,140.23,0.71392953]
[1768288969715,20.14823834,140.29,140.25,0.71392953]
[1768288969916,23.40565777,140.29,140.25,0.71392953]
[1768288970123,23.50465777,140.29,140.25,0.71392953]
[1768288970828,13.02,140.29,140.26,0.71392953]
[1768288971133,13.02,140.3,140.27,0.71392953]
[1768288971343,0.49192491,140.31,140.27,0.71392953]
[1768288971634,0.49192491,140.31,140.28,0.71392953]
[1768288971635,16.27741943,140.31,140.28,0.71392953]
[1768288973736,23.40461284,140.31,140.28,0.71392953]
[1768288974244,23.50361284,140.31,140.26,0.71392953]
[1768288974746,3.25741943,140.3,140.26,0.71392953]
[1768288974920,20.24619341,140.31,140.28,0.71392953]
[1768288975238,23.50361284,140.31,140.28,0.71392953]
[1768288977318,10.48361284,140.31,140.27,0.71392953]
[1768288977519,16.27741943,140.32,140.28,0.71392953]
[1768288978037,13.02,140.32,140.28,0.71392953]
[1768288978627,13.12,140.33,140.29,0.71392953]
[1768288979345,13.12,140.33,140.29,11.09939095]
[1768288979346,0.58799566,140.33,140.29,11.09939095]
[1768288979547,0.1,140.33,140.3,0.71392953]
[1768288980135,3.35741943,140.33,140.3,0.71392953]
[1768288982152,0.1,140.33,140.3,0.71392953]
[1768288982323,3.45641943,140.33,140.3,0.71392953]
[1768288982937,3.42641944,140.33,140.3,0.71392953]
[1768288983641,3.32741944,140.33,140.3,0.71392953]
[1768288984047,0.07000001,140.33,140.3,0.71392953]
[1768288985327,10.42349876,140.33,140.3,0.71392953]
[1768288985526,3.29741945,140.33,140.3,0.71392953]
[1768288985967,0.04000002,140.33,140.3,0.71392953]
[1768288986351,3.39641945,140.33,140.3,0.71392953]
[1768288986729,0.13900002,140.33,140.3,0.71392953]
[1768288986929,3.39641945,140.33,140.3,0.71392953]
[1768288987430,10.52261873,140.33,140.3,0.71392953]
[1768288987632,3.74541509,140.32,140.28,0.72004619]
[1768288987941,3.25741943,140.31,140.28,0.72004619]
[1768288989361,10.48748269,140.31,140.28,0.72004619]
[1768288989558,10.38459274,140.31,140.28,0.72004619]
[1768288989762,10.45359275,140.31,140.28,0.72004619]
[1768288991865,3.25741943,140.32,140.28,0.72004619]
[1768288993663,7.65832258,140.33,140.28,0.72004619]
[1768288993859,3.25741943,140.32,140.28,0.72004619]
[1768288994062,3.35641943,140.32,140.28,0.72004619]
[1768288994290,0.48799566,140.31,140.28,0.72004619]
[1768288994652,3.74541509,140.31,140.28,0.72004619]
[1768288995158,3.74934434,140.32,140.28,0.72004619]
[1768288995364,2.57469771,140.32,140.28,0.72004619]
[1768288995779,9.7013907,140.32,140.28,0.72004619]
[1768288997259,7.5,140.31,140.28,0.72004619]
[1768288998160,7.5,140.31,140.28,2.80281899]
[1768288998366,7.5,140.31,140.29,0.72195466]
[1768288999174,0.04000002,140.33,140.29,7.12799139]
[1768288999351,0.71904788,140.33,140.29,7.12799139]
[1768288999556,0.71904788,140.33,140.29,9.21076419]
[1768288999776,0.71904788,140.33,140.3,0.72195466]
[1768289008685,0.71904788,140.33,140.3,9.93230314]
[1768289009467,0.71904788,140.33,140.3,7.84953034]
[1768289010465,0.71904788,140.33,140.29,7.85004646]
[1768289011581,0.04000002,140.33,140.31,0.72195466]
[1768289016270,0.04000002,140.33,140.31,7.84893306]
[1768289016485,0.1,140.34,140.32,2.75036593]
[1768289017377,0.1,140.34,140.32,7.79410862]
[1768289018195,0.1,140.34,140.33,0.66759313]
[1768289019377,0.1,140.35,140.34,0.66759313]
[1768289021205,0.1,140.35,140.33,0.66759313]
[1768289026971,0.1,140.35,140.34,0.66759313]
[1768289027286,0.1,140.35,140.33,0.66759313]
[1768289027878,0.1,140.36,140.35,0.66759313]
[1768289028080,0.1,140.37,140.35,0.66759313]
[1768289031026,0.78386071,140.37,140.35,7.12500546]
[1768289032599,0.78386071,140.37,140.35,2.0827728]
[1768289033693,0.78386071,140.37,140.34,0.61807507]
[1768289033902,0.78386071,140.37,140.34,7.12536717]
[1768289039000,0.67947794,140.35,140.31,0.66759313]
[1768289039308,2.0827728,140.36,140.32,0.66759313]
[1768289040085,2.86663351,140.37,140.32,0.66759313]
[1768289040511,9.99069994,140.37,140.33,0.66759313]
[1768289042409,2.86663351,140.37,140.33,0.66759313]
[1768289043602,0.78386071,140.37,140.34,0.66759313]
[1768289043811,0.1,140.37,140.34,0.66759313]
[1768289044101,0.1,140.37,140.36,0.66759313]
[1768289044303,0.1,140.37,140.35,2.0827728]
[1768289044492,0.34992252,140.37,140.35,2.0827728]
[1768289044695,0.1,140.37,140.35,2.78379773]
[1768289045312,0.1,140.39,140.37,0.70102493]
[1768289045688,0.1,140.39,140.36,0.70102493]
[1768289045892,0.1,140.39,140.37,0.70102493]
[1768289049700,0.1,140.39,140.38,0.70102493]
[1768289057722,1e-08,140.39,140.38,7.82454679]
[1768289058635,1e-08,140.4,140.39,0.67630707]
[1768289063529,1e-08,140.4,140.39,7.79932152]
[1768289063724,0.67675727,140.4,140.39,7.12301445]
[1768289064026,0.1,140.41,140.39,7.12301445]
[1768289064419,0.1,140.41,140.4,0.67630707]
[1768289064930,0.1,140.43,140.41,0.67630707]
[1768289065114,0.1,140.43,140.41,0.61630707]
[1768289065316,0.1,140.43,140.38,3.24968331]
[1768289065317,3.34968331,140.43,140.38,3.24968331]
[1768289065727,3.34968331,140.43,140.37,24.93332988]
[1768289065931,3.34968331,140.43,140.38,3.24968331]
[1768289067134,3.34968331,140.43,140.4,0.67630707]
[1768289067821,0.1,140.43,140.41,0.67630707]
[1768289076531,0.1,140.43,140.41,0.61630707]
[1768289077457,0.57140599,140.43,140.39,3.24968331]
[1768289078348,0.10272406,140.42,140.38,7.12352186]
[1768289078639,0.10272406,140.42,140.39,0.71626637]
[1768289079742,3.34968331,140.43,140.4,0.71626637]
[1768289080042,3.44868331,140.43,140.4,0.71626637]
[1768289080242,0.199,140.43,140.4,0.71626637]
[1768289084951,0.10272406,140.4,140.34,0.71626637]
[1768289085123,0.47140599,140.4,140.34,7.125451]
[1768289085328,3.35240737,140.39,140.33,0.71626637]
[1768289085546,0.099,140.39,140.36,3.96594968]
[1768289085739,0.47516767,140.42,140.38,3.96594968]
[1768289089551,0.47516767,140.42,140.39,0.71626637]
[1768289090250,13.57516767,140.43,140.39,0.71626637]
[1768289090442,0.199,140.43,140.39,3.96594968]
[1768289090751,0.47140599,140.42,140.39,3.96594968]
[1768289091153,0.47140599,140.42,140.39,3.24968331]
[1768289091351,0.47140599,140.42,140.38,7.83972128]
[1768289091654,0.47140599,140.42,140.39,3.24968331]
[1768289092856,0.57516767,140.43,140.41,3.24968331]
[1768289093058,0.57516767,140.43,140.4,3.24968331]
[1768289093352,0.57516767,140.43,140.39,7.83898509]
[1768289093554,0.57516767,140.43,140.39,11.0886684]
[1768289096852,3.34868331,140.42,140.38,0.71626637]
[1768289098838,3.24968331,140.42,140.38,0.71626637]
[1768289100549,3.24968331,140.41,140.38,0.71626637]
[1768289101552,3.34868331,140.42,140.38,0.71626637]
[1768289101947,0.47140599,140.41,140.38,0.71626637]
[1768289104251,0.10272406,140.4,140.36,7.12437194]
[1768289104560,3.71740248,140.39,140.35,7.84117973]
[1768289104936,3.71378903,140.37,140.33,7.78523417]
[1768289105250,3.71378903,140.37,140.34,0.65932455]
[1768289105766,3.24968331,140.36,140.34,0.65932455]
[1768289105939,3.71378903,140.37,140.34,0.65932455]
[1768289106146,0.10995133,140.36,140.33,7.12590962]
[1768289106455,0.07995131,140.36,140.33,7.12590962]
[1768289107244,0.04995132,140.36,140.33,7.12590962]
[1768289108263,13.0,140.38,140.34,0.65932455]
[1768289108449,13.0,140.38,140.33,7.78523417]
[1768289108450,3.24968331,140.37,140.33,7.78523417]
[1768289109164,3.66485097,140.37,140.33,7.78523417]
[1768289110168,0.41516766,140.37,140.33,7.78523417]
[1768289110360,3.66485097,140.37,140.33,7.78523417]
[1768289111169,3.66485097,140.37,140.34,7.78465333]
[1768289111351,16.24968331,140.38,140.35,0.65932455]
[1768289111973,3.24968331,140.37,140.35,0.65932455]
[1768289112968,3.24968331,140.38,140.35,0.65932455]
[1768289113364,3.24968331,140.37,140.35,0.65932455]
[1768289113948,3.24968331,140.36,140.35,0.65932455]
[1768289114478,3.24968331,140.36,140.33,0.70656141]
[1768289114679,3.24968331,140.35,140.33,0.70656141]
[1768289114847,3.24968331,140.34,140.3,0.70656141]
[1768289115048,0.40890722,140.35,140.31,0.70656141]
[1768289115265,3.35488114,140.34,140.31,0.70656141]
[1768289116148,3.24968331,140.34,140.32,0.70656141]
[1768289116956,3.34868331,140.35,140.32,0.70656141]
[1768289117371,3.66168929,140.34,140.3,7.8341327]
[1768289119365,2.49410886,140.34,140.3,7.8341327]
[1768289119561,0.10213006,140.33,140.29,0.70656141]
[1768289120080,2.08210288,140.32,140.29,0.70656141]
[1768289120455,2.08210288,140.32,140.29,7.83460348]
[1768289121178,0.10213006,140.33,140.29,7.83460348]
[1768289121384,2.18423294,140.33,140.29,7.83460348]
[1768289121775,0.10213006,140.33,140.3,0.70656141]
[1768289121976,13.41516766,140.35,140.3,0.70656141]
[1768289122182,15.49727054,140.35,140.31,0.70656141]
[1768289122966,13.41516766,140.35,140.31,0.70656141]
[1768289123165,15.49727054,140.35,140.31,0.70656141]
[1768289123362,13.41516766,140.35,140.31,0.70656141]
[1768289123585,15.49727054,140.35,140.31,0.70656141]
[1768289123965,0.41516766,140.37,140.32,0.70656141]
[1768289124164,0.41516766,140.37,140.32,2.78866429]
[1768289124371,2.49727054,140.37,140.33,0.70656141]
[1768289124773,0.41516766,140.37,140.33,0.70656141]
[1768289125077,7.5,140.36,140.33,0.70656141]
[1768289126769,0.41516766,140.38,140.34,0.70656141]
[1768289126957,2.49727054,140.38,140.34,0.70656141]
[1768289127163,0.41516766,140.38,140.34,0.70656141]
[1768289127471,2.49727054,140.38,140.34,0.70656141]
[1768289127988,2.49727054,140.38,140.34,7.83201551]
[1768289128167,2.49727054,140.38,140.35,0.70656141]
[1768289128600,0.41516766,140.38,140.35,0.70656141]
[1768289128788,2.49727054,140.38,140.33,9.91467348]
[1768289128984,2.49727054,140.38,140.34,7.83201591]
[1768289129168,2.49727054,140.38,140.35,0.70656141]
[1768289129988,0.6,140.37,140.35,0.70656141]
[1768289130786,0.693,140.4,140.36,0.70656141]
[1768289131108,0.41794598,140.39,140.36,0.70656141]
[1768289132185,0.41794598,140.39,140.35,7.12484907]
[1768289132372,2.49832616,140.39,140.35,7.83141048]
[1768289132578,0.69024946,140.38,140.35,7.83141048]
[1768289135296,0.69024946,140.38,140.35,9.91179066]
[1768289137989,0.69286848,140.39,140.36,2.74371637]
[1768289138997,0.69286848,140.39,140.36,0.66333619]
[1768289139404,15.08038018,140.42,140.37,2.74371637]
[1768289139697,15.08038018,140.42,140.38,0.66333619]
[1768289139698,2.08038018,140.42,140.38,0.66333619]
[1768289139885,0.69286848,140.41,140.38,0.66333619]
[1768289140396,0.69286848,140.41,140.37,2.74371637]
[1768289140978,0.69286848,140.41,140.38,7.78685805]
[1768289145493,20.22112857,140.43,140.38,7.12352186]
[1768289145701,2.08038018,140.42,140.39,0.66333619]
[1768289145878,7.5,140.41,140.4,0.66333619]
[1768289146079,0.1,140.43,140.4,0.66333619]
[1768289148195,0.1,140.43,140.41,7.78533604]
[1768289148881,15.77324866,140.45,140.42,0.66333619]
[1768289149083,13.66725668,140.45,140.42,0.66333619]
[1768289149399,0.69286848,140.45,140.42,0.66333619]
[1768289150796,0.69286848,140.45,140.42,7.78477516]
[1768289150999,0.1,140.46,140.43,0.66333619]
[1768289151293,0.1,140.46,140.43,2.68371637]
[1768289151485,0.79286848,140.46,140.43,2.68371637]
[1768289151692,0.79286848,140.46,140.43,0.60333619]
[1768289151890,0.79286848,140.46,140.42,7.12143897]
[1768289152086,0.1,140.46,140.42,9.20181915]
[1768289152687,0.1,140.48,140.43,2.08038018]
[1768289153315,0.79286848,140.48,140.44,0.66333619]
[1768289153916,0.1,140.48,140.44,0.66333619]
[1768289154120,0.1,140.48,140.45,0.66333619]
[1768289155203,0.1,140.48,140.46,0.66333619]
[1768289155605,0.1,140.48,140.45,9.86343213]
[1768289157028,0.1,140.48,140.45,7.78305195]
[1768289158226,0.1,140.48,140.45,9.86343213]
[1768289160023,0.1,140.48,140.47,0.66333619]
[1768289160227,0.79286848,140.5,140.47,0.66333619]
[1768289160228,0.1,140.5,140.47,0.66333619]